[Event "Titled Tuesday Blitz February 15 Late 2022"]
[White "Plotkin, Mark"]
[Black "Sarana, Alexey"]
[WhiteFideId "2611651"]
[BlackFideId "24133795"]
[WhiteElo "2178"]
[BlackElo "2665"]
[Result "1-0"]
[Round "02"]
[TimeControl "180+1"]
[Date "2022.02.15"]
[WhiteClock "0:00:04"]
[BlackClock "0:00:08"]

1. e4 {[%clk 0:03:00]}  c5 {[%clk 0:02:59]} 2. d4 {[%clk 0:02:58]}  cxd4 {[%clk 0:02:58]} 3. c3 {[%clk 0:02:59]}  dxc3 {[%clk 0:02:58]} 4. Nxc3 {[%clk 0:03:00]}  Nc6 {[%clk 0:02:58]} 5. Nf3 {[%clk 0:03:01]}  d6 {[%clk 0:02:56]} 6. Bc4 {[%clk 0:03:00]}  e6 {[%clk 0:02:57]} 7. O-O {[%clk 0:03:01]}  Nf6 {[%clk 0:02:57]} 8. Bg5 {[%clk 0:03:00]}  Be7 {[%clk 0:02:57]} 9. Qe2 {[%clk 0:03:01]}  O-O {[%clk 0:02:55]} 10. Rfd1 {[%clk 0:03:01]}  Bd7 {[%clk 0:02:53]} 11. Bxf6 {[%clk 0:03:00]}  Bxf6 {[%clk 0:02:54]} 12. Rxd6 {[%clk 0:03:00]}  Be7 {[%clk 0:02:54]} 13. Rd2 {[%clk 0:02:58]}  Qc8 {[%clk 0:02:52]} 14. Rad1 {[%clk 0:02:58]}  Rd8 {[%clk 0:02:52]} 15. e5 {[%clk 0:02:58]}  Be8 {[%clk 0:02:48]} 16. Bd3 {[%clk 0:02:55]}  Qc7 {[%clk 0:02:43]} 17. Qe4 {[%clk 0:02:53]}  g6 {[%clk 0:02:43]} 18. h4 {[%clk 0:02:50]}  Rac8 {[%clk 0:02:40]} 19. a3 {[%clk 0:02:21]}  Na5 {[%clk 0:02:34]} 20. Qf4 {[%clk 0:01:58]}  Nb3 {[%clk 0:02:28]} 21. Rc2 {[%clk 0:01:56]}  Nc5 {[%clk 0:02:27]} 22. Be2 {[%clk 0:01:49]}  Rxd1+ {[%clk 0:02:27]} 23. Nxd1 {[%clk 0:01:50]}  Qd8 {[%clk 0:01:39]} 24. Ne3 {[%clk 0:01:43]}  Bc6 {[%clk 0:01:34]} 25. Ng4 {[%clk 0:01:35]}  Bxf3 {[%clk 0:01:16]} 26. Bxf3 {[%clk 0:01:27]}  Qf8 {[%clk 0:01:11]} 27. h5 {[%clk 0:01:19]}  g5 {[%clk 0:00:24]} 28. Nf6+ {[%clk 0:01:15]}  Bxf6 {[%clk 0:00:24]} 29. Qxf6 {[%clk 0:01:16]}  h6 {[%clk 0:00:25]} 30. Rd2 {[%clk 0:01:06]}  Qg7 {[%clk 0:00:21]} 31. Rd8+ {[%clk 0:00:47]}  Rxd8 {[%clk 0:00:21]} 32. Qxd8+ {[%clk 0:00:48]}  Qf8 {[%clk 0:00:21]} 33. Qc7 {[%clk 0:00:46]}  a6 {[%clk 0:00:17]} 34. Bxb7 {[%clk 0:00:38]}  a5 {[%clk 0:00:17]} 35. b4 {[%clk 0:00:32]}  axb4 {[%clk 0:00:18]} 36. axb4 {[%clk 0:00:33]}  Nd3 {[%clk 0:00:18]} 37. b5 {[%clk 0:00:29]}  Qa3 {[%clk 0:00:18]} 38. Qd8+ {[%clk 0:00:28]}  Kg7 {[%clk 0:00:18]} 39. Qf6+ {[%clk 0:00:28]}  Kg8 {[%clk 0:00:19]} 40. Kh2 {[%clk 0:00:15]}  Qa5 {[%clk 0:00:14]} 41. Qxh6 {[%clk 0:00:11]}  Qd2 {[%clk 0:00:11]} 42. Qf6 {[%clk 0:00:05]}  Nxf2 {[%clk 0:00:11]} 43. Bf3 {[%clk 0:00:03]}  Nd3 {[%clk 0:00:03]} 44. h6 {[%clk 0:00:03]}  Qf4+ {[%clk 0:00:03]} 45. Qxf4 {[%clk 0:00:03]}  gxf4 {[%clk 0:00:04]} 46. b6 {[%clk 0:00:03]}  Nc5 {[%clk 0:00:05]} 47. b7 {[%clk 0:00:04]}  Nd7 {[%clk 0:00:06]} 48. Be4 {[%clk 0:00:03]}  f5 {[%clk 0:00:05]} 49. exf6 {[%clk 0:00:03]}  Kf7 {[%clk 0:00:06]} 50. h7 {[%clk 0:00:03]}  Kxf6 {[%clk 0:00:06]} 51. h8=Q+ {[%clk 0:00:03]}  Ke7 {[%clk 0:00:07]} 52. b8=Q {[%clk 0:00:03]}  Nxb8 {[%clk 0:00:07]} 53. Qxb8 {[%clk 0:00:04]}  Kf6 {[%clk 0:00:08]} 54. Qd6 {[%clk 0:00:04]} 1-0


[Site "https://www.chess.com"]

[Event "Titled Tuesday Blitz February 15 Late 2022"]
[White "Przybylski, Wojciech"]
[Black "Chabris, Christopher"]
[WhiteFideId "1117599"]
[BlackFideId "2005263"]
[WhiteElo "2133"]
[BlackElo "2299"]
[Result "0-1"]
[Round "02"]
[TimeControl "180+1"]
[Date "2022.02.16"]
[WhiteClock "0:00:04"]
[BlackClock "0:00:03"]

1. e4 {[%clk 0:02:58]}  c5 {[%clk 0:02:58]} 2. Nf3 {[%clk 0:02:58]}  d6 {[%clk 0:02:59]} 3. d4 {[%clk 0:02:58]}  cxd4 {[%clk 0:02:59]} 4. Nxd4 {[%clk 0:02:59]}  Nf6 {[%clk 0:02:59]} 5. Nc3 {[%clk 0:02:59]}  a6 {[%clk 0:02:59]} 6. Be3 {[%clk 0:03:00]}  e5 {[%clk 0:02:59]} 7. Nb3 {[%clk 0:02:59]}  Be7 {[%clk 0:02:58]} 8. Be2 {[%clk 0:02:57]}  Be6 {[%clk 0:02:56]} 9. Nd5 {[%clk 0:02:56]}  Nxd5 {[%clk 0:02:48]} 10. exd5 {[%clk 0:02:57]}  Bf5 {[%clk 0:02:48]} 11. c4 {[%clk 0:02:55]}  Nd7 {[%clk 0:02:46]} 12. Qd2 {[%clk 0:02:54]}  h6 {[%clk 0:02:40]} 13. Qb4 {[%clk 0:02:43]}  b6 {[%clk 0:02:36]} 14. O-O {[%clk 0:02:38]}  O-O {[%clk 0:02:26]} 15. f4 {[%clk 0:02:36]}  a5 {[%clk 0:02:18]} 16. Qd2 {[%clk 0:02:31]}  exf4 {[%clk 0:02:00]} 17. Bxf4 {[%clk 0:02:27]}  Bh7 {[%clk 0:01:54]} 18. Nd4 {[%clk 0:02:26]}  Nc5 {[%clk 0:01:46]} 19. Nc6 {[%clk 0:02:21]}  Qc7 {[%clk 0:01:47]} 20. Rae1 {[%clk 0:01:33]}  Ne4 {[%clk 0:01:35]} 21. Qe3 {[%clk 0:01:31]}  Rfe8 {[%clk 0:01:32]} 22. Bd3 {[%clk 0:01:27]}  Bf6 {[%clk 0:01:26]} 23. Bxe4 {[%clk 0:01:21]}  Rxe4 {[%clk 0:01:25]} 24. Qg3 {[%clk 0:01:21]}  Bxb2 {[%clk 0:01:02]} 25. Bxd6 {[%clk 0:01:10]}  Qd7 {[%clk 0:00:57]} 26. Ne7+ {[%clk 0:00:51]}  Kh8 {[%clk 0:00:47]} 27. Rxe4 {[%clk 0:00:50]}  Bxe4 {[%clk 0:00:45]} 28. Rxf7 {[%clk 0:00:47]}  Qa4 {[%clk 0:00:39]} 29. h3 {[%clk 0:00:24]}  Qd1+ {[%clk 0:00:36]} 30. Kh2 {[%clk 0:00:23]}  Bd4 {[%clk 0:00:35]} 31. Qf4 {[%clk 0:00:05]}  Bg1+ {[%clk 0:00:27]} 32. Kg3 {[%clk 0:00:05]}  Qd3+ {[%clk 0:00:12]} 33. Kg4 {[%clk 0:00:06]}  Qe2+ {[%clk 0:00:08]} 34. Kh4 {[%clk 0:00:03]}  g5+ {[%clk 0:00:06]} 35. Qxg5 {[%clk 0:00:03]}  hxg5+ {[%clk 0:00:06]} 36. Kxg5 {[%clk 0:00:04]}  Be3+ {[%clk 0:00:05]} 37. Kf6 {[%clk 0:00:04]}  Bd4+ {[%clk 0:00:04]} 38. Ke6 {[%clk 0:00:04]}  Bg6+ {[%clk 0:00:04]} 39. Kd7 {[%clk 0:00:04]}  Bxf7 {[%clk 0:00:03]} 40. Nf5 {[%clk 0:00:03]}  Qe8+ {[%clk 0:00:03]} 41. Kc7 {[%clk 0:00:04]}  Qc8# {[%clk 0:00:03]} 0-1


[Site "https://www.chess.com"]

[Event "Titled Tuesday Blitz February 15 Late 2022"]
[White "Qashashvili, Alexandre"]
[Black "Deac, Bogdan-Daniel"]
[WhiteFideId "13600842"]
[BlackFideId "1226380"]
[WhiteElo "2316"]
[BlackElo "2646"]
[Result "0-1"]
[Round "02"]
[TimeControl "180+1"]
[Date "2022.02.16"]
[WhiteClock "0:00:37"]
[BlackClock "0:00:26"]

1. e4 {[%clk 0:03:00]}  c5 {[%clk 0:02:59]} 2. Nc3 {[%clk 0:03:00]}  d6 {[%clk 0:02:59]} 3. Nf3 {[%clk 0:02:59]}  a6 {[%clk 0:02:59]} 4. d3 {[%clk 0:02:58]}  g6 {[%clk 0:02:58]} 5. Be3 {[%clk 0:02:58]}  Bg7 {[%clk 0:02:59]} 6. Qd2 {[%clk 0:02:58]}  Nc6 {[%clk 0:02:59]} 7. Be2 {[%clk 0:02:59]}  Nd4 {[%clk 0:02:54]} 8. Bd1 {[%clk 0:02:54]}  e6 {[%clk 0:02:50]} 9. a4 {[%clk 0:02:51]}  h6 {[%clk 0:02:47]} 10. h3 {[%clk 0:02:50]}  Ne7 {[%clk 0:02:47]} 11. O-O {[%clk 0:02:49]}  Nec6 {[%clk 0:02:47]} 12. Nh2 {[%clk 0:02:42]}  Rb8 {[%clk 0:02:42]} 13. Rb1 {[%clk 0:02:41]}  b5 {[%clk 0:02:42]} 14. axb5 {[%clk 0:02:42]}  axb5 {[%clk 0:02:43]} 15. Ne2 {[%clk 0:02:42]}  b4 {[%clk 0:02:43]} 16. f4 {[%clk 0:02:35]}  O-O {[%clk 0:02:41]} 17. f5 {[%clk 0:02:34]}  exf5 {[%clk 0:02:39]} 18. Bxh6 {[%clk 0:02:34]}  fxe4 {[%clk 0:02:39]} 19. Bxg7 {[%clk 0:02:34]}  Kxg7 {[%clk 0:02:39]} 20. Nxd4 {[%clk 0:02:30]}  Nxd4 {[%clk 0:02:38]} 21. dxe4 {[%clk 0:02:29]}  Qe7 {[%clk 0:02:39]} 22. Bf3 {[%clk 0:02:26]}  Qe5 {[%clk 0:02:35]} 23. c3 {[%clk 0:02:21]}  bxc3 {[%clk 0:02:35]} 24. bxc3 {[%clk 0:02:21]}  Rxb1 {[%clk 0:02:32]} 25. Rxb1 {[%clk 0:02:20]}  Nc6 {[%clk 0:02:31]} 26. Rd1 {[%clk 0:02:15]}  Rd8 {[%clk 0:02:30]} 27. Qd5 {[%clk 0:02:11]}  Qxd5 {[%clk 0:02:28]} 28. exd5 {[%clk 0:02:09]}  Ne5 {[%clk 0:02:27]} 29. Be2 {[%clk 0:02:07]}  Bf5 {[%clk 0:01:44]} 30. Nf3 {[%clk 0:02:03]}  Nd7 {[%clk 0:01:44]} 31. Bd3 {[%clk 0:02:02]}  Bxd3 {[%clk 0:01:43]} 32. Rxd3 {[%clk 0:02:02]}  Nb6 {[%clk 0:01:42]} 33. Kf2 {[%clk 0:01:55]}  Ra8 {[%clk 0:01:33]} 34. Nd2 {[%clk 0:01:40]}  Ra4 {[%clk 0:01:33]} 35. Kf3 {[%clk 0:01:34]}  f5 {[%clk 0:01:33]} 36. g4 {[%clk 0:01:28]}  Kf6 {[%clk 0:01:32]} 37. gxf5 {[%clk 0:01:29]}  gxf5 {[%clk 0:01:33]} 38. Kg3 {[%clk 0:01:22]}  Kg6 {[%clk 0:01:16]} 39. Nf3 {[%clk 0:01:12]}  Re4 {[%clk 0:01:06]} 40. Nd2 {[%clk 0:01:05]}  Ra4 {[%clk 0:01:06]} 41. Nf3 {[%clk 0:01:05]}  Kh5 {[%clk 0:00:50]} 42. Nd2 {[%clk 0:00:57]}  Kg5 {[%clk 0:00:38]} 43. Nf3+ {[%clk 0:00:56]}  Kf6 {[%clk 0:00:39]} 44. Nd2 {[%clk 0:00:54]}  Nd7 {[%clk 0:00:37]} 45. Nf3 {[%clk 0:00:52]}  Re4 {[%clk 0:00:36]} 46. Nd2 {[%clk 0:00:46]}  Ra4 {[%clk 0:00:36]} 47. Nf3 {[%clk 0:00:46]}  Nf8 {[%clk 0:00:27]} 48. Re3 {[%clk 0:00:37]}  f4+ {[%clk 0:00:26]} 0-1


[Site "https://www.chess.com"]

[Event "Titled Tuesday Blitz February 15 Late 2022"]
[White "Rangel, Daniel"]
[Black "Bellissimo, Joseph F."]
[WhiteFideId "2124475"]
[BlackFideId "2609843"]
[WhiteElo "2187"]
[BlackElo "2061"]
[Result "0-1"]
[Round "02"]
[TimeControl "180+1"]
[Date "2022.02.16"]
[WhiteClock "0:00:29"]
[BlackClock "0:01:38"]

1. Nf3 {[%clk 0:03:00]}  Nf6 {[%clk 0:02:59]} 2. d4 {[%clk 0:03:01]}  e6 {[%clk 0:02:59]} 3. c4 {[%clk 0:03:02]}  d5 {[%clk 0:02:58]} 4. Nc3 {[%clk 0:03:01]}  a6 {[%clk 0:02:57]} 5. cxd5 {[%clk 0:03:00]}  exd5 {[%clk 0:02:58]} 6. Bf4 {[%clk 0:02:59]}  c5 {[%clk 0:02:56]} 7. e3 {[%clk 0:02:59]}  Nc6 {[%clk 0:02:57]} 8. Be2 {[%clk 0:02:58]}  Bd6 {[%clk 0:02:56]} 9. Bxd6 {[%clk 0:02:57]}  Qxd6 {[%clk 0:02:57]} 10. dxc5 {[%clk 0:02:57]}  Qxc5 {[%clk 0:02:58]} 11. O-O {[%clk 0:02:57]}  O-O {[%clk 0:02:58]} 12. Rc1 {[%clk 0:02:55]}  Qd6 {[%clk 0:02:55]} 13. Na4 {[%clk 0:02:52]}  Rd8 {[%clk 0:02:55]} 14. Nb6 {[%clk 0:02:45]}  Rb8 {[%clk 0:02:54]} 15. Nxc8 {[%clk 0:02:46]}  Rbxc8 {[%clk 0:02:55]} 16. Nd4 {[%clk 0:02:46]}  Ne5 {[%clk 0:02:55]} 17. Qb3 {[%clk 0:02:39]}  b5 {[%clk 0:02:53]} 18. h3 {[%clk 0:02:37]}  Ne4 {[%clk 0:02:52]} 19. Rfd1 {[%clk 0:02:36]}  Nc4 {[%clk 0:02:50]} 20. a4 {[%clk 0:02:02]}  Nc5 {[%clk 0:02:48]} 21. Qa2 {[%clk 0:02:00]}  Nxa4 {[%clk 0:02:46]} 22. b3 {[%clk 0:01:50]}  Nxe3 {[%clk 0:02:44]} 23. fxe3 {[%clk 0:01:31]}  Nc3 {[%clk 0:02:43]} 24. Qc2 {[%clk 0:01:19]}  Nxd1 {[%clk 0:02:41]} 25. Qd2 {[%clk 0:01:19]}  Nxe3 {[%clk 0:02:12]} 26. Qxe3 {[%clk 0:01:14]}  Rxc1+ {[%clk 0:02:10]} 27. Qxc1 {[%clk 0:01:14]}  Qg3 {[%clk 0:01:56]} 28. Nf5 {[%clk 0:01:02]}  Qe5 {[%clk 0:01:47]} 29. Qg5 {[%clk 0:01:01]}  Re8 {[%clk 0:01:43]} 30. Bf3 {[%clk 0:00:51]}  g6 {[%clk 0:01:41]} 31. Nh6+ {[%clk 0:00:49]}  Kg7 {[%clk 0:01:39]} 32. Qh4 {[%clk 0:00:40]}  Qe3+ {[%clk 0:01:38]} 33. Kh2 {[%clk 0:00:37]}  Qxh6 {[%clk 0:01:38]} 34. Qd4+ {[%clk 0:00:37]}  Kg8 {[%clk 0:01:37]} 35. Bxd5 {[%clk 0:00:38]}  Qg7 {[%clk 0:01:37]} 36. Qf4 {[%clk 0:00:34]}  Qe5 {[%clk 0:01:37]} 37. Bxf7+ {[%clk 0:00:33]}  Kg7 {[%clk 0:01:37]} 38. Qxe5+ {[%clk 0:00:29]}  Rxe5 {[%clk 0:01:38]} 0-1


[Site "https://www.chess.com"]

[Event "Titled Tuesday Blitz February 15 Late 2022"]
[White "Remizov, Yaroslav"]
[Black "Martinez Alcantara, Jose Eduardo"]
[WhiteFideId "34134015"]
[BlackFideId "3805662"]
[WhiteElo "2360"]
[BlackElo "2690"]
[Result "1-0"]
[Round "02"]
[TimeControl "180+1"]
[Date "2022.02.15"]
[WhiteClock "0:00:11"]
[BlackClock "0:00:05"]

1. e3 {[%clk 0:03:00]}  Nf6 {[%clk 0:02:59]} 2. a3 {[%clk 0:03:00]}  b6 {[%clk 0:02:59]} 3. c4 {[%clk 0:03:01]}  Bb7 {[%clk 0:02:59]} 4. Qc2 {[%clk 0:03:00]}  g6 {[%clk 0:02:59]} 5. Nf3 {[%clk 0:02:56]}  c5 {[%clk 0:02:59]} 6. Be2 {[%clk 0:02:55]}  Bg7 {[%clk 0:03:00]} 7. O-O {[%clk 0:02:55]}  O-O {[%clk 0:03:00]} 8. b3 {[%clk 0:02:55]}  Nc6 {[%clk 0:02:58]} 9. Bb2 {[%clk 0:02:55]}  Rc8 {[%clk 0:02:59]} 10. Nc3 {[%clk 0:02:54]}  e6 {[%clk 0:03:00]} 11. Rad1 {[%clk 0:02:53]}  d5 {[%clk 0:03:00]} 12. cxd5 {[%clk 0:02:50]}  exd5 {[%clk 0:02:59]} 13. d4 {[%clk 0:02:50]}  cxd4 {[%clk 0:02:59]} 14. exd4 {[%clk 0:02:44]}  Na5 {[%clk 0:02:43]} 15. Ne5 {[%clk 0:02:32]}  Ne4 {[%clk 0:02:43]} 16. b4 {[%clk 0:02:30]}  Nc6 {[%clk 0:02:21]} 17. Nxc6 {[%clk 0:02:14]}  Bxc6 {[%clk 0:02:11]} 18. Qb3 {[%clk 0:02:06]}  Re8 {[%clk 0:02:01]} 19. Ba6 {[%clk 0:02:03]}  Nxc3 {[%clk 0:01:56]} 20. Bxc3 {[%clk 0:01:59]}  Rc7 {[%clk 0:01:56]} 21. Bd3 {[%clk 0:01:51]}  Qc8 {[%clk 0:01:47]} 22. Bb2 {[%clk 0:01:38]}  Qd7 {[%clk 0:01:40]} 23. b5 {[%clk 0:01:37]}  Bb7 {[%clk 0:01:40]} 24. a4 {[%clk 0:01:37]}  h5 {[%clk 0:01:38]} 25. h3 {[%clk 0:01:37]}  Qd6 {[%clk 0:01:33]} 26. Rc1 {[%clk 0:01:28]}  Rcc8 {[%clk 0:01:28]} 27. Rxc8 {[%clk 0:01:19]}  Bxc8 {[%clk 0:01:27]} 28. Qc3 {[%clk 0:01:15]}  Bd7 {[%clk 0:01:22]} 29. Re1 {[%clk 0:01:14]}  Rc8 {[%clk 0:01:19]} 30. Qd2 {[%clk 0:01:13]}  Be6 {[%clk 0:01:08]} 31. Kf1 {[%clk 0:00:33]}  Kh7 {[%clk 0:00:58]} 32. Kg1 {[%clk 0:00:33]}  Bh6 {[%clk 0:00:57]} 33. Qe2 {[%clk 0:00:33]}  Qb4 {[%clk 0:00:41]} 34. Ba1 {[%clk 0:00:32]}  Re8 {[%clk 0:00:32]} 35. Rb1 {[%clk 0:00:29]}  Qxa4 {[%clk 0:00:25]} 36. Qxh5 {[%clk 0:00:29]}  Qa3 {[%clk 0:00:19]} 37. Qd1 {[%clk 0:00:29]}  Bd7 {[%clk 0:00:16]} 38. Bb2 {[%clk 0:00:26]}  Qd6 {[%clk 0:00:16]} 39. Bc1 {[%clk 0:00:26]}  Bxc1 {[%clk 0:00:16]} 40. Rxc1 {[%clk 0:00:25]}  Qf4 {[%clk 0:00:16]} 41. Bf1 {[%clk 0:00:22]}  Kg7 {[%clk 0:00:16]} 42. Rc3 {[%clk 0:00:21]}  Re4 {[%clk 0:00:15]} 43. Rf3 {[%clk 0:00:20]}  Rxd4 {[%clk 0:00:13]} 44. Qa1 {[%clk 0:00:20]}  Qe5 {[%clk 0:00:14]} 45. Qxa7 {[%clk 0:00:20]}  Qd6 {[%clk 0:00:13]} 46. Qa1 {[%clk 0:00:19]}  Qe5 {[%clk 0:00:13]} 47. Re3 {[%clk 0:00:16]}  Qf6 {[%clk 0:00:11]} 48. Rf3 {[%clk 0:00:16]}  Rf4 {[%clk 0:00:10]} 49. Qxf6+ {[%clk 0:00:14]}  Rxf6 {[%clk 0:00:11]} 50. Rc3 {[%clk 0:00:14]}  Rd6 {[%clk 0:00:10]} 51. Bd3 {[%clk 0:00:13]}  Kf6 {[%clk 0:00:11]} 52. f4 {[%clk 0:00:13]}  g5 {[%clk 0:00:11]} 53. fxg5+ {[%clk 0:00:12]}  Kxg5 {[%clk 0:00:12]} 54. Kf2 {[%clk 0:00:13]}  Kf4 {[%clk 0:00:13]} 55. Rc7 {[%clk 0:00:12]}  Ke5 {[%clk 0:00:12]} 56. Ke3 {[%clk 0:00:12]}  d4+ {[%clk 0:00:12]} 57. Kd2 {[%clk 0:00:12]}  f5 {[%clk 0:00:10]} 58. h4 {[%clk 0:00:12]}  f4 {[%clk 0:00:09]} 59. h5 {[%clk 0:00:12]}  Bg4 {[%clk 0:00:08]} 60. Rg7 {[%clk 0:00:10]}  Bc8 {[%clk 0:00:05]} 61. Rg5+ {[%clk 0:00:10]}  Kf6 {[%clk 0:00:02]} 62. Rg6+ {[%clk 0:00:10]}  Ke7 {[%clk 0:00:03]} 63. Rxd6 {[%clk 0:00:11]}  Kxd6 {[%clk 0:00:04]} 64. h6 {[%clk 0:00:12]}  Bf5 {[%clk 0:00:04]} 65. Bxf5 {[%clk 0:00:11]}  f3 {[%clk 0:00:05]} 66. gxf3 {[%clk 0:00:11]} 1-0


[Site "https://www.chess.com"]

[Event "Titled Tuesday Blitz February 15 Late 2022"]
[White "Remolar Gallen, Jose"]
[Black "Balint, Vilmos"]
[WhiteFideId "2215187"]
[BlackFideId "718050"]
[WhiteElo "2205"]
[BlackElo "2059"]
[Result "0-1"]
[Round "02"]
[TimeControl "180+1"]
[Date "2022.02.16"]
[WhiteClock "0:00:01"]
[BlackClock "0:00:13"]

1. d4 {[%clk 0:03:00]}  f5 {[%clk 0:02:51]} 2. Nf3 {[%clk 0:03:00]}  Nf6 {[%clk 0:02:51]} 3. c4 {[%clk 0:03:00]}  g6 {[%clk 0:02:51]} 4. Nc3 {[%clk 0:03:00]}  Bg7 {[%clk 0:02:52]} 5. g3 {[%clk 0:02:58]}  O-O {[%clk 0:02:52]} 6. Bg2 {[%clk 0:02:59]}  d6 {[%clk 0:02:39]} 7. O-O {[%clk 0:03:00]}  Nc6 {[%clk 0:02:38]} 8. Rb1 {[%clk 0:02:42]}  e5 {[%clk 0:02:37]} 9. d5 {[%clk 0:02:16]}  Nb8 {[%clk 0:02:36]} 10. b4 {[%clk 0:02:11]}  a5 {[%clk 0:02:36]} 11. b5 {[%clk 0:02:04]}  b6 {[%clk 0:02:30]} 12. Ng5 {[%clk 0:02:01]}  Ra7 {[%clk 0:02:25]} 13. e4 {[%clk 0:01:52]}  h6 {[%clk 0:02:06]} 14. Ne6 {[%clk 0:01:50]}  Bxe6 {[%clk 0:02:06]} 15. dxe6 {[%clk 0:01:51]}  f4 {[%clk 0:01:48]} 16. Nd5 {[%clk 0:01:47]}  Qe8 {[%clk 0:01:43]} 17. Bh3 {[%clk 0:01:20]}  Nxe4 {[%clk 0:01:34]} 18. e7 {[%clk 0:00:54]}  Rf6 {[%clk 0:01:20]} 19. Qc2 {[%clk 0:00:33]}  Ng5 {[%clk 0:01:19]} 20. Bg2 {[%clk 0:00:28]}  Ne6 {[%clk 0:01:07]} 21. Be4 {[%clk 0:00:25]}  Nd4 {[%clk 0:01:04]} 22. Qd3 {[%clk 0:00:25]}  g5 {[%clk 0:00:42]} 23. Bb2 {[%clk 0:00:21]}  Ne6 {[%clk 0:00:42]} 24. Bh7+ {[%clk 0:00:18]}  Kh8 {[%clk 0:00:42]} 25. Nxf6 {[%clk 0:00:18]}  Bxf6 {[%clk 0:00:42]} 26. Qf5 {[%clk 0:00:18]}  Qxe7 {[%clk 0:00:42]} 27. Rbd1 {[%clk 0:00:16]}  Nd7 {[%clk 0:00:38]} 28. Rfe1 {[%clk 0:00:14]}  Ndc5 {[%clk 0:00:38]} 29. h4 {[%clk 0:00:14]}  fxg3 {[%clk 0:00:29]} 30. fxg3 {[%clk 0:00:14]}  gxh4 {[%clk 0:00:25]} 31. Rf1 {[%clk 0:00:14]}  Bg5 {[%clk 0:00:23]} 32. gxh4 {[%clk 0:00:14]}  Be3+ {[%clk 0:00:22]} 33. Kh1 {[%clk 0:00:15]}  Qxh4+ {[%clk 0:00:22]} 34. Kg2 {[%clk 0:00:15]}  Qg5+ {[%clk 0:00:21]} 35. Qxg5 {[%clk 0:00:15]}  Nxg5 {[%clk 0:00:22]} 36. Bc2 {[%clk 0:00:15]}  Ra8 {[%clk 0:00:22]} 37. Rf6 {[%clk 0:00:12]}  Nge4 {[%clk 0:00:19]} 38. Rf3 {[%clk 0:00:05]}  Bg5 {[%clk 0:00:18]} 39. Rdf1 {[%clk 0:00:05]}  Ne6 {[%clk 0:00:15]} 40. Bxe4 {[%clk 0:00:04]}  Nf4+ {[%clk 0:00:15]} 41. Kf2 {[%clk 0:00:02]}  Rg8 {[%clk 0:00:15]} 42. Bc1 {[%clk 0:00:01]}  Rf8 {[%clk 0:00:13]} 43. Bd5 {[%clk 0:00:01]}  Kh7 {[%clk 0:00:13]} 0-1


[Site "https://www.chess.com"]

[Event "Titled Tuesday Blitz February 15 Late 2022"]
[White "Romero Ruscalleda, Josep"]
[Black "Garriga Cazorla, Pere"]
[WhiteFideId "2231859"]
[BlackFideId "32011601"]
[WhiteElo "2405"]
[BlackElo "2458"]
[Result "1-0"]
[Round "02"]
[TimeControl "180+1"]
[Date "2022.02.16"]
[WhiteClock "0:01:28"]
[BlackClock "0:01:27"]

1. e4 {[%clk 0:03:00]}  c5 {[%clk 0:02:59]} 2. c3 {[%clk 0:03:00]}  g6 {[%clk 0:02:58]} 3. d4 {[%clk 0:02:57]}  cxd4 {[%clk 0:02:59]} 4. cxd4 {[%clk 0:02:57]}  d5 {[%clk 0:02:59]} 5. Nc3 {[%clk 0:02:57]}  dxe4 {[%clk 0:02:59]} 6. Bc4 {[%clk 0:02:57]}  Bg7 {[%clk 0:02:59]} 7. Qb3 {[%clk 0:02:56]}  e6 {[%clk 0:02:58]} 8. d5 {[%clk 0:02:56]}  exd5 {[%clk 0:02:51]} 9. Bxd5 {[%clk 0:02:55]}  Qe7 {[%clk 0:02:48]} 10. Nge2 {[%clk 0:02:49]}  Nf6 {[%clk 0:02:47]} 11. O-O {[%clk 0:02:48]}  O-O {[%clk 0:02:47]} 12. Bg5 {[%clk 0:02:46]}  Nc6 {[%clk 0:02:46]} 13. Nxe4 {[%clk 0:02:45]}  Bf5 {[%clk 0:02:43]} 14. N2g3 {[%clk 0:02:43]}  Nd4 {[%clk 0:02:20]} 15. Nxf5 {[%clk 0:02:29]}  gxf5 {[%clk 0:02:03]} 16. Nxf6+ {[%clk 0:02:16]}  Bxf6 {[%clk 0:02:02]} 17. Bxf6 {[%clk 0:02:16]}  Qxf6 {[%clk 0:01:54]} 18. Qxb7 {[%clk 0:02:10]}  Rad8 {[%clk 0:01:50]} 19. Rfd1 {[%clk 0:01:57]}  Rd6 {[%clk 0:01:36]} 20. Rd3 {[%clk 0:01:39]}  Kh8 {[%clk 0:01:33]} 21. Rad1 {[%clk 0:01:36]}  Rfd8 {[%clk 0:01:27]} 22. Rxd4 {[%clk 0:01:28]} 1-0


[Site "https://www.chess.com"]

[Event "Titled Tuesday Blitz February 15 Late 2022"]
[White "Rorrer, Grayson"]
[Black "Xiong, Jeffery"]
[WhiteFideId "30944996"]
[BlackFideId "2047640"]
[WhiteElo "2122"]
[BlackElo "2727"]
[Result "0-1"]
[Round "02"]
[TimeControl "180+1"]
[Date "2022.02.15"]
[WhiteClock "0:00:02"]
[BlackClock "0:01:10"]

1. e4 {[%clk 0:03:00]}  c5 {[%clk 0:02:53]} 2. Nf3 {[%clk 0:03:00]}  d6 {[%clk 0:02:54]} 3. d4 {[%clk 0:02:59]}  cxd4 {[%clk 0:02:55]} 4. Nxd4 {[%clk 0:03:00]}  Nf6 {[%clk 0:02:55]} 5. Nc3 {[%clk 0:03:01]}  a6 {[%clk 0:02:56]} 6. f3 {[%clk 0:02:59]}  e5 {[%clk 0:02:54]} 7. Nb3 {[%clk 0:02:59]}  Be6 {[%clk 0:02:54]} 8. Be3 {[%clk 0:03:00]}  Nbd7 {[%clk 0:02:54]} 9. Qd2 {[%clk 0:02:59]}  b5 {[%clk 0:02:54]} 10. O-O-O {[%clk 0:02:58]}  Nb6 {[%clk 0:02:51]} 11. Qf2 {[%clk 0:02:55]}  Nfd7 {[%clk 0:02:51]} 12. f4 {[%clk 0:02:49]}  Be7 {[%clk 0:02:17]} 13. f5 {[%clk 0:02:20]}  Bc4 {[%clk 0:02:16]} 14. Na5 {[%clk 0:02:16]}  Rc8 {[%clk 0:02:16]} 15. Nxc4 {[%clk 0:02:13]}  Nxc4 {[%clk 0:02:17]} 16. Nd5 {[%clk 0:01:39]}  Nxe3 {[%clk 0:02:00]} 17. Nxe3 {[%clk 0:01:39]}  Qb6 {[%clk 0:02:00]} 18. h4 {[%clk 0:01:31]}  d5 {[%clk 0:01:43]} 19. Qf3 {[%clk 0:00:51]}  dxe4 {[%clk 0:01:20]} 20. Qxe4 {[%clk 0:00:51]}  Nf6 {[%clk 0:01:20]} 21. Qf3 {[%clk 0:00:22]}  e4 {[%clk 0:01:16]} 22. Qe2 {[%clk 0:00:16]}  O-O {[%clk 0:01:16]} 23. g4 {[%clk 0:00:15]}  Rfd8 {[%clk 0:01:14]} 24. g5 {[%clk 0:00:06]}  Nh5 {[%clk 0:01:10]} 25. Rg1 {[%clk 0:00:02]}  Nf4 {[%clk 0:01:09]} 26. Qf2 {[%clk 0:00:02]}  Bc5 {[%clk 0:01:10]} 0-1


[Site "https://www.chess.com"]